fUSD/lending_fUSD_20250618
["ID","MTS","AMOUNT","RATE_DAILY","PERIOD"]
[366390339,1750228251860,-500.0,0.0001647,2]
[366390340,1750228251869,-200.0,0.0001647,2]
[366390341,1750228251879,-183.0,0.0001647,2]
[366390342,1750228251888,-150.57,0.00016487,2]
[366390343,1750228251897,-150.0,0.00016487,2]
[366390344,1750228251907,-150.0,0.00016487,2]
[366390345,1750228251916,-150.0,0.00016487,2]
[366390346,1750228251926,-300.6,0.00016487,2]
[366390347,1750228251939,-95482.62467435,0.0001649,2]
[366390348,1750228251948,-2324.36,0.00016493,2]
[366390349,1750228251958,-151.84375591,0.00016493,2]
[366390350,1750228251967,-500.0,0.00016493,2]
[366390351,1750228251977,-150.0,0.00016493,2]
[366390352,1750228251987,-150.0,0.00016493,2]
[366390353,1750228251996,-305.98870104,0.00016493,2]
[366390354,1750228252006,-456.0048695,0.00016493,2]
[366390355,1750228252016,-150.63476019,0.00016493,2]
[366390356,1750228252026,-500.0,0.00016493,2]
[366390357,1750228252036,-150.0,0.00016493,2]
[366390358,1750228252046,-500.0,0.00016493,2]
[366390359,1750228252056,-500.0,0.00016493,2]
[366390360,1750228252065,-500.0,0.00016493,2]
[366390361,1750228252076,-283.39334353,0.00016493,2]
[366390362,1750228252086,-150.0,0.00016493,2]
[366390363,1750228252095,-150.0,0.00016493,2]
[366390364,1750228252105,-153.05246388,0.00016493,2]
[366390365,1750228252115,-500.0,0.00016493,2]
[366390366,1750228252124,-500.0,0.00016493,2]
[366390367,1750228252134,-150.98885557,0.00016493,2]
[366390368,1750228252144,-500.0,0.00016493,2]
[366390369,1750228252158,-150.0,0.00016493,2]
[366390370,1750228252168,-1680.0,0.00016499,2]
[366390371,1750228252178,-2084.5,0.000165,3]
[366390372,1750228252188,-20744.54,0.000165,2]
[366390373,1750228252198,-500.0,0.0001652,2]
[366390374,1750228252208,-207.07030337,0.0001652,2]
[366390375,1750228252217,-152.72139541,0.0001652,2]
[366390376,1750228252228,-500.0,0.0001652,2]
[366390377,1750228252439,-256.21253458,0.0001652,2]
[366390378,1750228252451,-500.0,0.0001652,2]
[366390379,1750228252461,-500.0,0.0001652,2]
[366390380,1750228252471,-303.84543322,0.0001652,2]
[366390381,1750228252481,-150.0,0.0001652,2]
[366390382,1750228252491,-205.83489303,0.0001652,2]
[366390383,1750228252501,-500.0,0.0001652,2]
[366390384,1750228252511,-506.06207231,0.0001652,2]
[366390385,1750228252521,-500.0,0.0001652,2]
[366390386,1750228252531,-150.0,0.0001652,2]
[366390387,1750228252541,-159.11587244,0.0001652,2]
[366390388,1750228252551,-1372.41502703,0.00016532,2]
[366390389,1750228252561,-230.0,0.00016533,2]
[366390390,1750228252572,-500.0,0.00016548,2]
[366390391,1750228252581,-500.0,0.00016548,2]
[366390392,1750228252592,-359.80274753,0.00016548,2]
[366390393,1750228252601,-256.17533536,0.00016548,2]
[366390394,1750228252611,-500.0,0.00016548,2]
[366390395,1750228252620,-500.0,0.00016548,2]
[366390396,1750228252630,-218.31091285,0.00016548,2]
[366390397,1750228252639,-528.29859729,0.00016575,2]
[366390398,1750228252649,-312.72468752,0.00016575,2]
[366390399,1750228252659,-500.0,0.00016575,2]
[366390400,1750228252668,-500.0,0.00016575,2]
[366390401,1750228252677,-159.11587244,0.00016594,2]
[366390402,1750228252687,-183.0,0.00016595,2]
[366390403,1750228252697,-300.0,0.000166,2]
[366390404,1750228252706,-669.62,0.000166,2]
[366390405,1750228252716,-2863.367,0.000166,2]
[366390406,1750228252725,-290.899,0.000166,2]
[366390407,1750228252735,-18939.65751061,0.000166,3]
[366390408,1750228252744,-1000.0,0.000166,2]
[366390409,1750228252754,-833.92080167,0.000166,3]
[366390410,1750228252764,-500.0,0.00016601,2]
[366390411,1750228252773,-500.0,0.00016601,2]
[366390412,1750228252783,-500.0,0.00016601,2]
[366390413,1750228252792,-500.0,0.00016601,2]
[366390414,1750228252802,-164.66,0.00016601,2]
[366390415,1750228252811,-500.0,0.00016601,2]
[366390416,1750228252822,-500.0,0.00016601,2]
[366390417,1750228252831,-500.0,0.00016601,2]
[366390418,1750228252841,-500.0,0.00016601,2]
[366390419,1750228252851,-4060.86,0.00016601,2]
[366390420,1750228252860,-4060.86,0.00016601,2]
[366390421,1750228252870,-4060.86,0.00016601,2]
[366390422,1750228252879,-4060.86,0.00016601,2]
[366390423,1750228252889,-300.0,0.00016601,2]
[366390424,1750228252898,-300.0,0.00016601,2]
[366390425,1750228252909,-300.0,0.00016601,2]
[366390426,1750228252918,-300.0,0.00016601,2]
[366390427,1750228252929,-183.0,0.00016602,2]
[366390428,1750228252940,-490.0,0.00016602,2]
[366390429,1750228252950,-490.0,0.00016602,2]
[366390430,1750228252960,-490.0,0.00016602,2]
[366390431,1750228252969,-829.31,0.00016602,2]
[366390432,1750228252978,-490.0,0.00016602,2]
[366390433,1750228252988,-349.32403921,0.00016602,2]
[366390434,1750228252998,-419.47429114,0.00016602,2]
[366390435,1750228253009,-461.39569436,0.00016602,2]
[366390436,1750228253018,-490.0,0.00016602,2]
[366390437,1750228253028,-852.7,0.00016602,2]
[366390438,1750228253038,-976.48,0.00016602,2]
[366390439,1750228253047,-200.0,0.00016602,2]
[366390440,1750228253057,-769.61,0.00016602,2]
[366390441,1750228253067,-490.0,0.00016602,2]
[366390442,1750228253077,-490.0,0.00016602,2]
[366390443,1750228253087,-490.0,0.00016602,2]
[366390444,1750228253096,-490.0,0.00016602,2]
[366390445,1750228253105,-490.0,0.00016602,2]
[366390446,1750228253114,-490.0,0.00016602,2]
[366390447,1750228253123,-490.0,0.00016602,2]
[366390448,1750228253133,-490.0,0.00016602,2]
[366390449,1750228253142,-734.69,0.00016602,2]
[366390450,1750228253151,-490.0,0.00016602,2]
[366390451,1750228253160,-490.0,0.00016602,2]
[366390452,1750228253170,-596.35,0.00016602,2]
[366390453,1750228253179,-300.0,0.00016602,2]
[366390454,1750228253188,-522.52,0.00016602,2]
[366390455,1750228253197,-490.0,0.00016602,2]
[366390456,1750228253207,-742.5,0.00016602,2]
[366390457,1750228253216,-490.0,0.00016602,2]
[366390458,1750228253226,-873.72,0.00016602,2]
[366390459,1750228253236,-490.0,0.00016602,2]
[366390460,1750228253245,-490.0,0.00016602,2]
[366390461,1750228253255,-861.7,0.00016602,2]
[366390462,1750228253264,-490.0,0.00016602,2]
[366390463,1750228253275,-298.07663356,0.00016602,2]
[366390464,1750228253285,-490.0,0.00016602,2]
[366390465,1750228253295,-490.0,0.00016602,2]
[366390466,1750228253306,-490.0,0.00016602,2]
[366390467,1750228253316,-490.0,0.00016602,2]
[366390468,1750228253327,-490.0,0.00016602,2]
[366390469,1750228253337,-490.0,0.00016602,2]
[366390470,1750228253346,-340.61,0.00016602,2]
[366390471,1750228253356,-498.45,0.00016602,2]
[366390472,1750228253366,-490.0,0.00016602,2]
[366390473,1750228253375,-632.37,0.00016602,2]
[366390474,1750228253385,-490.0,0.00016602,2]
[366390475,1750228253394,-490.0,0.00016602,2]
[366390476,1750228253404,-490.0,0.00016602,2]
[366390477,1750228253414,-490.0,0.00016602,2]
[366390478,1750228253423,-490.0,0.00016602,2]
[366390479,1750228253433,-490.0,0.00016602,2]
[366390480,1750228253443,-490.0,0.00016602,2]
[366390481,1750228253453,-728.74,0.00016602,2]
[366390482,1750228253463,-985.73,0.00016602,2]
[366390483,1750228253472,-490.0,0.00016602,2]
[366390484,1750228253482,-490.0,0.00016602,2]
[366390485,1750228253491,-490.0,0.00016602,2]
[366390486,1750228253501,-518.23,0.00016602,2]
[366390487,1750228253510,-490.0,0.00016602,2]
[366390488,1750228253520,-490.0,0.00016602,2]
[366390489,1750228253530,-490.0,0.00016602,2]
[366390490,1750228253540,-490.0,0.00016602,2]
[366390491,1750228253549,-490.0,0.00016602,2]
[366390492,1750228253559,-537.07,0.00016602,2]
[366390493,1750228253568,-490.0,0.00016602,2]
[366390494,1750228253578,-490.0,0.00016602,2]
[366390495,1750228253588,-490.0,0.00016602,2]
[366390496,1750228253598,-490.0,0.00016602,2]
[366390497,1750228253608,-490.0,0.00016602,2]
[366390498,1750228253618,-490.0,0.00016602,2]
[366390499,1750228253628,-490.0,0.00016602,2]
[366390500,1750228253639,-608.7,0.00016602,2]
[366390501,1750228253650,-490.0,0.00016602,2]
[366390502,1750228253660,-1486.82,0.00016602,2]
[366390503,1750228253670,-490.0,0.00016602,2]
[366390504,1750228253680,-490.0,0.00016602,2]
[366390505,1750228253691,-490.0,0.00016602,2]
[366390506,1750228253702,-592.13,0.00016602,2]
[366390507,1750228253712,-490.0,0.00016602,2]
[366390508,1750228253724,-490.0,0.00016602,2]
[366390509,1750228253734,-490.0,0.00016602,2]
[366390510,1750228253743,-490.0,0.00016602,2]
[366390511,1750228253753,-490.0,0.00016602,2]
[366390512,1750228253769,-490.0,0.00016602,2]
[366390513,1750228253781,-490.0,0.00016602,2]
[366390514,1750228253790,-490.0,0.00016602,2]
[366390515,1750228253802,-605.41,0.00016602,2]
[366390516,1750228253815,-517.99,0.00016602,2]
[366390517,1750228253825,-490.0,0.00016602,2]
[366390518,1750228253835,-490.0,0.00016602,2]
[366390519,1750228253846,-490.0,0.00016602,2]
[366390520,1750228253857,-490.0,0.00016602,2]
[366390521,1750228253867,-490.0,0.00016602,2]
[366390522,1750228253877,-490.0,0.00016602,2]
[366390523,1750228253886,-969.56,0.00016602,2]
[366390524,1750228253896,-645.69,0.00016602,2]
[366390525,1750228253906,-490.0,0.00016602,2]
[366390526,1750228253915,-579.87,0.00016602,2]
[366390527,1750228253925,-490.0,0.00016602,2]
[366390528,1750228253939,-490.0,0.00016602,2]
[366390529,1750228253949,-490.0,0.00016602,2]
[366390530,1750228253959,-490.0,0.00016602,2]
[366390531,1750228253969,-620.36,0.00016602,2]
[366390532,1750228253979,-490.0,0.00016602,2]
[366390533,1750228253989,-490.0,0.00016602,2]
[366390534,1750228253998,-861.57,0.00016602,2]
[366390535,1750228254011,-490.0,0.00016602,2]
[366390536,1750228254021,-490.0,0.00016602,2]
[366390537,1750228254031,-490.0,0.00016602,2]
[366390538,1750228254041,-742.97,0.00016602,2]
[366390539,1750228254051,-490.0,0.00016602,2]
[366390540,1750228254268,-490.0,0.00016602,2]
[366390541,1750228254278,-614.64,0.00016602,2]
[366390542,1750228254288,-490.0,0.00016602,2]
[366390543,1750228254298,-490.0,0.00016602,2]
[366390544,1750228254308,-353.53333005,0.00016602,2]
[366390545,1750228254318,-490.0,0.00016602,2]
[366390546,1750228254327,-569.21733593,0.00016602,2]
[366390547,1750228254337,-490.0,0.00016602,2]
[366390548,1750228254347,-490.0,0.00016602,2]
[366390549,1750228254356,-490.0,0.00016602,2]
[366390550,1750228254365,-490.0,0.00016602,2]
[366390551,1750228254375,-490.0,0.00016602,2]
[366390552,1750228254385,-490.0,0.00016602,2]
[366390553,1750228254395,-490.0,0.00016602,2]
[366390554,1750228254405,-490.0,0.00016602,2]
[366390555,1750228254415,-490.0,0.00016602,2]
[366390556,1750228254424,-490.0,0.00016602,2]
[366390557,1750228254434,-490.0,0.00016602,2]
[366390558,1750228254444,-580.19,0.00016602,2]
[366390559,1750228254453,-490.0,0.00016602,2]
[366390560,1750228254463,-490.0,0.00016602,2]
[366390561,1750228254472,-548.63712472,0.00016602,2]
[366390562,1750228254482,-490.0,0.00016602,2]
[366390563,1750228254491,-688.76,0.00016602,2]
[366390564,1750228254501,-490.0,0.00016602,2]
[366390565,1750228254511,-878.94,0.00016602,2]
[366390566,1750228254521,-490.0,0.00016602,2]
[366390567,1750228254530,-490.0,0.00016602,2]
[366390568,1750228254540,-490.0,0.00016602,2]
[366390569,1750228254550,-648.37,0.00016602,2]
[366390570,1750228254560,-490.0,0.00016602,2]
[366390571,1750228254570,-490.0,0.00016602,2]
[366390572,1750228254580,-490.0,0.00016602,2]
[366390573,1750228254590,-490.0,0.00016602,2]
[366390574,1750228254600,-490.0,0.00016602,2]
[366390575,1750228254610,-490.0,0.00016602,2]
[366390576,1750228254620,-490.0,0.00016602,2]
[366390577,1750228254630,-490.0,0.00016602,2]
[366390578,1750228254639,-490.0,0.00016602,2]
[366390579,1750228254649,-490.0,0.00016602,2]
[366390580,1750228254660,-490.0,0.00016602,2]
[366390581,1750228254669,-490.0,0.00016602,2]
[366390582,1750228254679,-490.0,0.00016602,2]
[366390583,1750228254689,-512.33,0.00016602,2]
[366390584,1750228254699,-490.0,0.00016602,2]
[366390585,1750228254708,-490.0,0.00016602,2]
[366390586,1750228254718,-490.0,0.00016602,2]
[366390587,1750228254727,-956.13,0.00016602,2]
[366390588,1750228254737,-490.0,0.00016602,2]
[366390589,1750228254747,-490.0,0.00016602,2]
[366390590,1750228254757,-490.0,0.00016602,2]
[366390591,1750228254767,-494.78892502,0.00016602,2]
[366390592,1750228254777,-490.0,0.00016602,2]
[366390593,1750228254787,-490.0,0.00016602,2]
[366390594,1750228255106,-490.0,0.00016602,2]
[366390595,1750228255132,-490.0,0.00016602,2]
[366390596,1750228255142,-490.0,0.00016602,2]
[366390597,1750228255152,-490.0,0.00016602,2]
[366390598,1750228255162,-490.0,0.00016602,2]
[366390599,1750228255171,-490.0,0.00016602,2]
[366390600,1750228255181,-490.0,0.00016602,2]
[366390601,1750228255191,-726.53,0.00016602,2]
[366390602,1750228255200,-490.0,0.00016602,2]
[366390603,1750228255210,-490.0,0.00016602,2]
[366390604,1750228255221,-490.0,0.00016602,2]
[366390605,1750228255231,-490.0,0.00016602,2]
[366390606,1750228255241,-490.0,0.00016602,2]
[366390607,1750228255252,-1128.09,0.00016602,2]
[366390608,1750228255263,-521.76786814,0.00016602,2]
[366390609,1750228255273,-490.0,0.00016602,2]
[366390610,1750228255283,-490.0,0.00016602,2]
[366390611,1750228255293,-490.0,0.00016602,2]
[366390612,1750228255303,-490.0,0.00016602,2]
[366390613,1750228255313,-490.0,0.00016602,2]
[366390614,1750228255323,-697.97,0.00016602,2]
[366390615,1750228255332,-490.0,0.00016602,2]
[366390616,1750228255342,-757.19,0.00016602,2]
[366390617,1750228255353,-501.21507245,0.00016602,2]
[366390618,1750228255364,-490.0,0.00016602,2]
[366390619,1750228255374,-490.0,0.00016602,2]
[366390620,1750228255383,-490.0,0.00016602,2]
[366390621,1750228255393,-563.74,0.00016602,2]
[366390622,1750228255404,-490.0,0.00016602,2]
[366390623,1750228255414,-592.11,0.00016602,2]
[366390624,1750228255424,-1295.9,0.00016602,2]
[366390625,1750228255434,-519.41,0.00016602,2]
[366390626,1750228255444,-490.0,0.00016602,2]
[366390627,1750228255455,-490.0,0.00016602,2]
[366390628,1750228255465,-1407.43,0.00016602,2]
[366390629,1750228255475,-490.0,0.00016602,2]
[366390630,1750228255484,-490.0,0.00016602,2]
[366390631,1750228255493,-490.0,0.00016602,2]
[366390632,1750228255503,-801.35,0.00016602,2]
[366390633,1750228255512,-897.75,0.00016602,2]
[366390634,1750228255521,-490.0,0.00016602,2]
[366390635,1750228255531,-490.0,0.00016602,2]
[366390636,1750228255540,-564.16,0.00016602,2]
[366390637,1750228255551,-524.26,0.00016602,2]
[366390638,1750228255561,-490.0,0.00016602,2]
[366390639,1750228255572,-490.0,0.00016602,2]
[366390640,1750228255582,-498.39981582,0.00016602,2]
[366390641,1750228255592,-1565.9,0.00016602,2]
[366390642,1750228255602,-490.0,0.00016602,2]
[366390643,1750228255612,-490.0,0.00016602,2]
[366390644,1750228255622,-901.34,0.00016602,2]
[366390645,1750228255631,-592.18,0.00016602,2]
[366390646,1750228255640,-490.0,0.00016602,2]
[366390647,1750228255649,-490.0,0.00016602,2]
[366390648,1750228255659,-1000.0,0.00016602,2]
[366390649,1750228255668,-490.0,0.00016602,2]
[366390650,1750228255678,-490.0,0.00016602,2]
[366390651,1750228255688,-1143.38,0.00016602,2]
[366390652,1750228255698,-490.0,0.00016602,2]
[366390653,1750228255707,-490.0,0.00016602,2]
[366390654,1750228255717,-890.59,0.00016602,2]
[366390655,1750228255727,-490.0,0.00016602,2]
[366390656,1750228255737,-490.0,0.00016602,2]
[366390657,1750228255746,-490.0,0.00016602,2]
[366390658,1750228255755,-1158.69,0.00016602,2]
[366390659,1750228255764,-490.0,0.00016602,2]
[366390660,1750228255774,-563.05,0.00016602,2]
[366390661,1750228255784,-1200.34,0.00016602,2]
[366390662,1750228255794,-490.0,0.00016602,2]
[366390663,1750228255804,-688.55,0.00016602,2]
[366390664,1750228255814,-1353.23,0.00016602,2]
[366390665,1750228255823,-490.0,0.00016602,2]
[366390666,1750228255834,-1105.26,0.00016602,2]
[366390667,1750228255843,-538.51,0.00016602,2]
[366390668,1750228255853,-490.0,0.00016602,2]
[366390669,1750228255863,-490.0,0.00016602,2]
[366390670,1750228255872,-490.0,0.00016602,2]
[366390671,1750228255881,-1122.3,0.00016602,2]
[366390672,1750228255892,-490.0,0.00016602,2]
[366390673,1750228255902,-490.0,0.00016602,2]
[366390674,1750228255911,-490.0,0.00016602,2]
[366390675,1750228255921,-490.0,0.00016602,2]
[366390676,1750228255933,-490.0,0.00016602,2]
[366390677,1750228255944,-490.0,0.00016602,2]
[366390678,1750228255954,-490.0,0.00016602,2]
[366390679,1750228255964,-490.0,0.00016602,2]
[366390680,1750228255974,-490.0,0.00016602,2]
[366390681,1750228255984,-490.0,0.00016602,2]
[366390682,1750228255994,-490.0,0.00016602,2]
[366390683,1750228256005,-490.0,0.00016602,2]
[366390684,1750228256015,-1400.53,0.00016602,2]
[366390685,1750228256025,-611.73,0.00016602,2]
[366390686,1750228256035,-490.0,0.00016602,2]
[366390687,1750228256046,-490.0,0.00016602,2]
[366390688,1750228256055,-490.0,0.00016602,2]
[366390689,1750228256065,-490.0,0.00016602,2]
[366390690,1750228256075,-525.85,0.00016602,2]
[366390691,1750228256085,-542.92,0.00016602,2]
[366390692,1750228256096,-783.98,0.00016602,2]
[366390693,1750228256106,-974.44,0.00016602,2]
[366390694,1750228256116,-490.0,0.00016602,2]
[366390695,1750228256126,-580.53,0.00016602,2]
[366390696,1750228256136,-1515.32,0.00016602,2]
[366390697,1750228256146,-1216.73,0.00016602,2]
[366390698,1750228256156,-180.59065864,0.00016602,2]
[366390699,1750228256166,-1263.87,0.00016602,2]
[366390700,1750228256176,-1197.66,0.00016602,2]
[366390701,1750228256185,-629.02,0.00016602,2]
[366390702,1750228256195,-1262.59,0.00016602,2]
[366390703,1750228256205,-648.57,0.00016602,2]
[366390704,1750228256214,-766.61,0.00016602,2]
[366390705,1750228256224,-490.0,0.00016602,2]
[366390706,1750228256233,-1704.7,0.00016602,2]
[366390707,1750228256242,-490.0,0.00016602,2]
[366390708,1750228256250,-951.16,0.00016602,2]
[366390709,1750228256260,-490.0,0.00016602,2]
[366390710,1750228256270,-291.38203482,0.00016602,2]
[366390711,1750228256280,-585.54,0.00016602,2]
[366390712,1750228256290,-1370.21,0.00016602,2]
[366390713,1750228256300,-490.0,0.00016602,2]
[366390714,1750228256310,-1402.84,0.00016602,2]
[366390715,1750228256320,-589.02,0.00016602,2]
[366390716,1750228256335,-1827.76,0.00016602,2]
[366390717,1750228256344,-1044.31,0.00016602,2]
[366390718,1750228256355,-861.52,0.00016602,2]
[366390719,1750228256365,-650.32,0.00016602,2]
[366390720,1750228256375,-490.0,0.00016602,2]
[366390721,1750228256385,-490.0,0.00016602,2]
[366390722,1750228256395,-528.21,0.00016602,2]
[366390723,1750228256406,-490.0,0.00016602,2]
[366390724,1750228256416,-1193.44,0.00016602,2]
[366390725,1750228256426,-490.0,0.00016602,2]
[366390726,1750228256436,-1357.82,0.00016602,2]
[366390727,1750228256446,-490.0,0.00016602,2]
[366390728,1750228256456,-492.62,0.00016602,2]
[366390729,1750228256466,-803.54,0.00016602,2]
[366390730,1750228256476,-490.0,0.00016602,2]
[366390731,1750228256486,-490.0,0.00016602,2]
[366390732,1750228256495,-772.08,0.00016602,2]
[366390733,1750228256505,-1187.52,0.00016602,2]
[366390734,1750228256515,-490.0,0.00016602,2]
[366390735,1750228256525,-490.0,0.00016602,2]
[366390736,1750228256536,-490.0,0.00016602,2]
[366390737,1750228256546,-490.0,0.00016602,2]
[366390738,1750228256556,-1256.6,0.00016602,2]
[366390739,1750228256566,-875.18,0.00016602,2]
[366390740,1750228256579,-1169.32,0.00016602,2]
[366390741,1750228256589,-759.5,0.00016602,2]
[366390742,1750228256599,-2010.11,0.00016602,2]
[366390743,1750228256610,-490.0,0.00016602,2]
[366390744,1750228256619,-521.03,0.00016602,2]
[366390745,1750228256629,-645.48,0.00016602,2]
[366390746,1750228256639,-490.0,0.00016602,2]
[366390747,1750228256649,-738.62,0.00016602,2]
[366390748,1750228256658,-490.0,0.00016602,2]
[366390749,1750228256668,-587.6,0.00016602,2]
[366390750,1750228256677,-548.59,0.00016602,2]
[366390751,1750228256687,-490.0,0.00016602,2]
[366390752,1750228256696,-1226.95,0.00016602,2]
[366390753,1750228256706,-557.38,0.00016602,2]
[366390754,1750228256716,-490.0,0.00016602,2]
[366390755,1750228256726,-490.0,0.00016602,2]
[366390756,1750228256735,-490.0,0.00016602,2]
[366390757,1750228256745,-614.66,0.00016602,2]
[366390758,1750228256755,-967.69,0.00016602,2]
[366390759,1750228256765,-910.354394,0.00016602,2]
[366390760,1750228256775,-990.25,0.00016602,2]
[366390761,1750228256785,-490.0,0.00016602,2]
[366390762,1750228256795,-490.0,0.00016602,2]
[366390763,1750228256805,-587.45,0.00016602,2]
[366390764,1750228256815,-490.0,0.00016602,2]
[366390765,1750228256827,-1173.13,0.00016602,2]
[366390766,1750228256837,-769.24,0.00016602,2]
[366390767,1750228256846,-490.0,0.00016602,2]
[366390768,1750228256856,-944.05,0.00016602,2]
[366390769,1750228256865,-561.61,0.00016602,2]
[366390770,1750228256875,-490.0,0.00016602,2]
[366390771,1750228256884,-757.49,0.00016602,2]
[366390772,1750228256893,-490.0,0.00016602,2]
[366390773,1750228256901,-1608.15,0.00016602,2]
[366390774,1750228256909,-490.0,0.00016602,2]
[366390775,1750228256917,-490.0,0.00016602,2]
[366390776,1750228256925,-1003.59,0.00016602,2]
[366390777,1750228256937,-501.36442655,0.00016602,2]
[366390778,1750228256945,-703.88,0.00016602,2]
[366390779,1750228256954,-580.03,0.00016602,2]
[366390780,1750228256961,-820.87,0.00016602,2]
[366390781,1750228256970,-490.0,0.00016602,2]
[366390782,1750228256978,-490.0,0.00016602,2]
[366390783,1750228256986,-567.22,0.00016602,2]
[366390784,1750228256993,-490.0,0.00016602,2]
[366390785,1750228257001,-1000.34,0.00016602,2]
[366390786,1750228257010,-490.0,0.00016602,2]
[366390787,1750228257019,-757.28,0.00016602,2]
[366390788,1750228257027,-3053.246112,0.00016602,2]
[366390789,1750228257035,-490.0,0.00016602,2]
[366390790,1750228257043,-490.0,0.00016602,2]
[366390791,1750228257051,-490.0,0.00016602,2]
[366390792,1750228257059,-490.0,0.00016602,2]
[366390793,1750228257067,-1942.63,0.00016602,2]
[366390794,1750228257075,-2841.38,0.00016602,2]
[366390795,1750228257083,-490.0,0.00016602,2]
[366390796,1750228257091,-490.0,0.00016602,2]
[366390797,1750228257100,-848.93,0.00016602,2]
[366390798,1750228257109,-490.0,0.00016602,2]
[366390799,1750228257117,-490.0,0.00016602,2]
[366390800,1750228257128,-906.12,0.00016602,2]
[366390801,1750228257138,-490.0,0.00016602,2]
[366390802,1750228257147,-1187.13,0.00016602,2]
[366390803,1750228257157,-597.9,0.00016602,2]
[366390804,1750228257166,-709.03,0.00016602,2]
[366390805,1750228257176,-490.0,0.00016602,2]
[366390806,1750228257186,-220.19524625,0.00016602,2]
[366390807,1750228257195,-354.95,0.00016602,2]
[366390808,1750228257205,-490.0,0.00016602,2]
[366390809,1750228257214,-2053.51,0.00016602,2]
[366390810,1750228257224,-490.0,0.00016602,2]
[366390811,1750228257234,-490.0,0.00016602,2]
[366390812,1750228257243,-781.79,0.00016602,2]
[366390813,1750228257253,-490.0,0.00016602,2]
[366390814,1750228257262,-490.0,0.00016602,2]
[366390815,1750228257272,-528.41,0.00016602,2]
[366390816,1750228257282,-732.44,0.00016602,2]
[366390817,1750228257291,-553.37,0.00016602,2]
[366390818,1750228257301,-1029.71,0.00016602,2]
[366390819,1750228257310,-490.0,0.00016602,2]
[366390820,1750228257320,-490.0,0.00016602,2]
[366390821,1750228257332,-490.0,0.00016602,2]
[366390822,1750228257341,-533.39,0.00016602,2]
[366390823,1750228257351,-702.2,0.00016602,2]
[366390824,1750228257361,-490.0,0.00016602,2]
[366390825,1750228257370,-490.0,0.00016602,2]
[366390826,1750228257379,-490.0,0.00016602,2]
[366390827,1750228257389,-730.17,0.00016602,2]
[366390828,1750228257399,-490.0,0.00016602,2]
[366390829,1750228257408,-490.0,0.00016602,2]
[366390830,1750228257418,-490.0,0.00016602,2]
[366390831,1750228257428,-546.87,0.00016602,2]
[366390832,1750228257438,-1471.12,0.00016602,2]
[366390833,1750228257447,-490.0,0.00016602,2]
[366390834,1750228257457,-1340.89,0.00016602,2]
[366390835,1750228257467,-2086.97,0.00016602,2]
[366390836,1750228257559,-490.0,0.00016602,2]
[366390837,1750228257571,-665.94,0.00016602,2]
[366390838,1750228257583,-490.0,0.00016602,2]